fUST/lending_fUST_20250604
["ID","MTS","AMOUNT","RATE_DAILY","PERIOD"]
[364027333,1748967044068,-440.0,0.00018097,2]
[364027334,1748967044079,-440.0,0.00018097,2]
[364027335,1748967044089,-248.51517768,0.00018097,2]
[364027336,1748967044099,-440.0,0.00018097,2]
[364027337,1748967044108,-430.0,0.00018097,2]
[364027338,1748967044119,-440.0,0.00018097,2]
[364027339,1748967044129,-440.0,0.00018097,2]
[364027340,1748967044138,-420.0,0.00018097,2]
[364027341,1748967044149,-420.0,0.00018097,2]
[364027342,1748967044159,-420.0,0.00018097,2]
[364027343,1748967044169,-440.0,0.00018097,2]
[364027344,1748967044179,-440.0,0.00018097,2]
[364027345,1748967044189,-420.0,0.00018097,2]
[364027346,1748967044198,-440.0,0.00018097,2]
[364027347,1748967044209,-440.0,0.00018097,2]
[364027348,1748967044218,-440.0,0.00018097,2]
[364027349,1748967044227,-440.0,0.00018097,2]
[364027350,1748967044237,-420.0,0.00018097,2]
[364027352,1748967044246,-440.0,0.00018097,2]
[364027353,1748967044256,-440.0,0.00018097,2]
[364027355,1748967044266,-440.0,0.00018097,2]
[364027357,1748967044275,-440.0,0.00018097,2]
[364027359,1748967044285,-420.0,0.00018097,2]
[364027361,1748967044295,-532.75792014,0.00018097,2]
[364027363,1748967044304,-420.0,0.00018097,2]
[364027365,1748967044316,-440.0,0.00018097,2]
[364027367,1748967044326,-440.0,0.00018097,2]
[364027369,1748967044337,-420.0,0.00018097,2]
[364027371,1748967044346,-440.0,0.00018097,2]
[364027373,1748967044356,-440.0,0.00018097,2]
[364027375,1748967044366,-440.0,0.00018097,2]
[364027377,1748967044375,-440.0,0.00018097,2]
[364027379,1748967044385,-440.0,0.00018097,2]
[364027381,1748967044396,-440.0,0.00018097,2]
[364027383,1748967044406,-440.0,0.00018097,2]
[364027385,1748967044415,-313.69000331,0.00018097,2]
[364027388,1748967044426,-233.65061207,0.00018097,2]
[364027390,1748967044436,-440.0,0.00018097,2]
[364027392,1748967044446,-420.0,0.00018097,2]
[364027394,1748967044455,-440.0,0.00018097,2]
[364027396,1748967044465,-336.03172676,0.00018097,2]
[364027397,1748967044474,-420.0,0.00018097,2]
[364027399,1748967044485,-440.0,0.00018097,2]
[364027401,1748967044494,-420.0,0.00018097,2]
[364027403,1748967044503,-430.0,0.00018097,2]
[364027405,1748967044513,-440.0,0.00018097,2]
[364027407,1748967044522,-430.0,0.00018097,2]
[364027409,1748967044532,-440.0,0.00018097,2]
[364027411,1748967044541,-390.0,0.00018097,2]
[364027413,1748967044551,-420.0,0.00018097,2]
[364027415,1748967044561,-390.0,0.00018097,2]
[364027417,1748967044571,-440.0,0.00018097,2]
[364027419,1748967044581,-420.0,0.00018097,2]
[364027421,1748967044591,-371.8883247,0.00018097,2]
[364027423,1748967044601,-393.81510061,0.00018097,2]
[364027425,1748967044611,-346.19956992,0.00018097,2]
[364027427,1748967044621,-420.0,0.00018097,2]
[364027429,1748967044631,-300.20887027,0.00018097,2]
[364027431,1748967044642,-393.41986618,0.00018097,2]
[364027433,1748967044651,-420.0,0.00018097,2]
[364027435,1748967044662,-440.0,0.00018097,2]
[364027437,1748967044671,-420.0,0.00018097,2]
[364027439,1748967044681,-440.0,0.00018097,2]
[364027441,1748967044691,-420.0,0.00018097,2]
[364027443,1748967044700,-420.0,0.00018097,2]
[364027445,1748967044710,-440.0,0.00018097,2]
[364027447,1748967044719,-440.0,0.00018097,2]
[364027449,1748967044729,-440.0,0.00018097,2]
[364027451,1748967044739,-420.0,0.00018097,2]
[364027453,1748967044749,-380.0,0.00018097,2]
[364027455,1748967044759,-420.0,0.00018097,2]
[364027457,1748967044769,-440.0,0.00018097,2]
[364027459,1748967044779,-232.24427179,0.00018097,2]
[364027461,1748967044789,-430.0,0.00018097,2]
[364027463,1748967044799,-440.0,0.00018097,2]
[364027465,1748967044809,-311.54794634,0.00018097,2]
[364027467,1748967044819,-440.0,0.00018097,2]
[364027469,1748967044829,-410.0,0.00018097,2]
[364027471,1748967044839,-440.0,0.00018097,2]
[364027473,1748967044848,-440.0,0.00018097,2]
[364027475,1748967044857,-421.7491363,0.00018097,2]
[364027477,1748967044867,-420.0,0.00018097,2]
[364027479,1748967044876,-500.0,0.00018097,2]
[364027481,1748967044886,-430.0,0.00018097,2]
[364027483,1748967044898,-440.0,0.00018097,2]
[364027485,1748967044908,-420.0,0.00018097,2]
[364027487,1748967044917,-189.31904658,0.00018097,2]
[364027489,1748967044927,-196.02551417,0.00018097,2]
[364027491,1748967044936,-440.0,0.00018097,2]
[364027493,1748967044947,-440.0,0.00018097,2]
[364027495,1748967044956,-420.0,0.00018097,2]
[364027497,1748967044966,-420.0,0.00018097,2]
[364027499,1748967044976,-440.0,0.00018097,2]
[364027501,1748967044986,-174.81751953,0.00018097,2]
[364027503,1748967044995,-420.0,0.00018097,2]
[364027505,1748967045007,-420.7582188,0.00018097,2]
[364027507,1748967045017,-420.0,0.00018097,2]
[364027509,1748967045028,-430.0,0.00018097,2]
[364027511,1748967045038,-255.55,0.00018097,2]
[364027513,1748967045048,-440.0,0.00018097,2]
[364027515,1748967045059,-420.0,0.00018097,2]
[364027517,1748967045069,-440.0,0.00018097,2]
[364027519,1748967045080,-543.54597485,0.00018097,2]
[364027521,1748967045091,-440.0,0.00018097,2]
[364027523,1748967045101,-420.0,0.00018097,2]
[364027525,1748967045111,-440.0,0.00018097,2]
[364027527,1748967045120,-440.0,0.00018097,2]
[364027529,1748967045131,-430.0,0.00018097,2]
[364027531,1748967045142,-440.0,0.00018097,2]
[364027533,1748967045152,-193.72963428,0.00018097,2]
[364027535,1748967045163,-283.97046111,0.00018097,2]
[364027537,1748967045174,-420.0,0.00018097,2]
[364027539,1748967045183,-420.0,0.00018097,2]
[364027541,1748967045194,-420.0,0.00018097,2]
[364027543,1748967045205,-553.84241964,0.00018097,2]
[364027545,1748967045217,-440.0,0.00018097,2]
[364027547,1748967045227,-430.0,0.00018097,2]
[364027549,1748967045237,-440.0,0.00018097,2]
[364027551,1748967045247,-440.0,0.00018097,2]
[364027553,1748967045257,-440.0,0.00018097,2]
[364027555,1748967045267,-440.0,0.00018097,2]
[364027557,1748967045277,-440.0,0.00018097,2]
[364027559,1748967045288,-440.0,0.00018097,2]
[364027561,1748967045298,-440.0,0.00018097,2]
[364027563,1748967045308,-440.0,0.00018097,2]
[364027565,1748967045318,-420.0,0.00018097,2]
[364027567,1748967045329,-440.0,0.00018097,2]
[364027569,1748967045338,-420.0,0.00018097,2]
[364027571,1748967045348,-440.0,0.00018097,2]
[364027574,1748967045357,-440.0,0.00018097,2]
[364027577,1748967045367,-440.0,0.00018097,2]
[364027580,1748967045376,-440.0,0.00018097,2]
[364027582,1748967045386,-160.0,0.00018098,2]
[364027584,1748967045396,-412.00635979,0.00018099,2]
[364027586,1748967045406,-440.0,0.00018099,2]
[364027588,1748967045416,-440.0,0.00018099,2]
[364027590,1748967045426,-430.0,0.00018099,2]
[364027592,1748967045436,-440.0,0.00018099,2]
[364027605,1748967045545,-440.0,0.00018294,2]
[364027607,1748967045555,-539.99,0.00018294,2]
[364027610,1748967045566,-440.0,0.00018294,2]
[364027612,1748967045575,-546.44,0.00018294,2]
[364027614,1748967045585,-440.0,0.00018294,2]
[364027616,1748967045595,-440.0,0.00018369,2]
[364027618,1748967045605,-440.0,0.00018369,2]
[364027620,1748967045615,-154.12,0.00018369,2]
[364027622,1748967045625,-440.0,0.0001837,2]
[364027624,1748967045635,-420.0,0.0001837,2]
[364027626,1748967045647,-400.0,0.0001837,2]
[364027628,1748967045656,-440.0,0.0001837,2]
[364027630,1748967045667,-440.0,0.0001837,2]
[364027632,1748967045677,-440.0,0.0001837,2]
[364027634,1748967045687,-440.0,0.0001837,2]
[364027636,1748967045697,-440.15,0.0001837,2]
[364027638,1748967045706,-400.0,0.0001837,2]
[364027640,1748967045717,-440.0,0.0001837,2]
[364027642,1748967045727,-440.0,0.0001837,2]
[364027644,1748967045736,-440.0,0.0001837,2]
[364027646,1748967045746,-440.0,0.0001837,2]
[364027648,1748967045755,-265.08,0.0001837,2]
[364027651,1748967045765,-160.68331509,0.00018371,2]
[364027653,1748967045774,-440.0,0.00018371,2]
[364027655,1748967045784,-430.0,0.00018371,2]
[364027656,1748967045793,-420.0,0.00018371,2]
[364027658,1748967045803,-420.0,0.00018371,2]
[364027660,1748967045812,-420.0,0.00018371,2]
[364027662,1748967045821,-440.0,0.00018371,2]
[364027664,1748967045830,-440.0,0.00018371,2]
[364027666,1748967045840,-440.0,0.00018371,2]
[364027668,1748967045850,-440.0,0.00018371,2]
[364027670,1748967045859,-440.0,0.00018371,2]
[364027672,1748967045870,-440.0,0.00018371,2]
[364027674,1748967045881,-440.0,0.00018371,2]
[364027677,1748967045892,-440.0,0.00018371,2]
[364027679,1748967045902,-410.0,0.00018371,2]
[364027681,1748967045911,-440.0,0.00018371,2]
[364027683,1748967045921,-410.0,0.00018371,2]
[364027685,1748967045930,-440.0,0.00018371,2]
[364027687,1748967045940,-440.0,0.00018371,2]
[364027689,1748967045949,-440.0,0.00018371,2]
[364027691,1748967045959,-440.0,0.00018371,2]
[364027693,1748967045969,-440.0,0.00018371,2]
[364027695,1748967045978,-440.0,0.00018371,2]
[364027697,1748967045987,-410.0,0.00018371,2]
[364027700,1748967045998,-440.0,0.00018371,2]
[364027702,1748967046008,-440.0,0.00018371,2]
[364027703,1748967046017,-440.0,0.00018371,2]
[364027705,1748967046029,-440.0,0.00018371,2]
[364027707,1748967046039,-440.0,0.00018371,2]
[364027709,1748967046050,-440.0,0.00018371,2]
[364027712,1748967046060,-440.0,0.00018371,2]
[364027714,1748967046069,-440.0,0.00018371,2]
[364027716,1748967046079,-457.58856187,0.00018371,2]
[364027718,1748967046090,-414.61018233,0.00018371,2]
[364027720,1748967046100,-440.0,0.00018371,2]
[364027722,1748967046110,-420.0,0.00018371,2]
[364027724,1748967046120,-420.0,0.00018371,2]
[364027726,1748967046131,-420.0,0.00018371,2]
[364027728,1748967046142,-390.0,0.00018371,2]
[364027730,1748967046152,-440.0,0.00018371,2]
[364027732,1748967046161,-440.0,0.00018371,2]
[364027734,1748967046173,-353.29837282,0.00018371,2]
[364027736,1748967046183,-440.0,0.00018371,2]
[364027737,1748967046193,-440.0,0.00018371,2]
[364027739,1748967046204,-440.0,0.00018371,2]
[364027741,1748967046215,-440.0,0.00018371,2]
[364027744,1748967046226,-400.0,0.00018371,2]
[364027746,1748967046237,-440.0,0.00018371,2]
[364027748,1748967046246,-410.0,0.00018371,2]
[364027749,1748967046256,-440.0,0.00018371,2]
[364027751,1748967046265,-410.0,0.00018371,2]
[364027754,1748967046277,-410.0,0.00018371,2]
[364027756,1748967046287,-440.0,0.00018371,2]
[364027758,1748967046297,-442.73193462,0.00018371,2]
[364027760,1748967046307,-440.0,0.00018371,2]
[364027762,1748967046317,-440.0,0.00018371,2]
[364027764,1748967046326,-440.0,0.00018371,2]
[364027766,1748967046336,-525.76247446,0.00018371,2]
[364027768,1748967046346,-420.0,0.00018371,2]
[364027770,1748967046355,-336.97446327,0.00018371,2]
[364027772,1748967046366,-440.0,0.00018371,2]
[364027774,1748967046375,-440.0,0.00018371,2]
[364027776,1748967046385,-438.72354344,0.00018371,2]
[364027778,1748967046395,-156.658,0.00018372,2]
[364027780,1748967046405,-284.90451865,0.00018373,2]
[364027782,1748967046414,-196.29364021,0.00018373,2]
[364027784,1748967046424,-440.0,0.00018568,2]
[364027786,1748967046434,-440.0,0.00018568,2]
[364027788,1748967046443,-546.44,0.00018568,2]
[364027790,1748967046453,-440.0,0.00018568,2]
[364027792,1748967046463,-440.0,0.00018643,2]
[364027794,1748967046473,-440.0,0.00018643,2]
[364027796,1748967046482,-400.0,0.00018644,2]
[364027798,1748967046492,-283.819421,0.00018644,2]
[364027800,1748967046502,-440.0,0.00018644,2]
[364027802,1748967046512,-440.0,0.00018644,2]
[364027804,1748967046522,-440.0,0.00018644,2]
[364027806,1748967046532,-334.20243843,0.00018644,2]
[364027808,1748967046541,-163.02,0.00018644,2]
[364027810,1748967046551,-440.0,0.00018644,2]
[364027812,1748967046560,-440.0,0.00018644,2]
[364027814,1748967046570,-376.24338429,0.00018645,2]
[364027816,1748967046579,-440.0,0.00018645,2]
[364027818,1748967046589,-410.0,0.00018645,2]
[364027820,1748967046598,-440.0,0.00018645,2]
[364027822,1748967046608,-440.0,0.00018645,2]
[364027824,1748967046618,-440.0,0.00018645,2]
[364027826,1748967046628,-440.0,0.00018645,2]
[364027828,1748967046637,-440.0,0.00018645,2]
[364027829,1748967046648,-440.0,0.00018645,2]
[364027830,1748967046658,-440.0,0.00018645,2]
[364027831,1748967046668,-440.0,0.00018645,2]
[364027832,1748967046678,-410.0,0.00018645,2]
[364027833,1748967046687,-440.0,0.00018645,2]
[364027834,1748967046697,-440.0,0.00018645,2]
[364027835,1748967046707,-430.0,0.00018645,2]
[364027836,1748967046716,-440.0,0.00018645,2]
[364027837,1748967046726,-440.0,0.00018645,2]
[364027839,1748967046744,-420.0,0.00018645,2]
[364027841,1748967046757,-440.0,0.00018645,2]
[364027843,1748967046767,-400.0,0.00018645,2]
[364027845,1748967046777,-440.0,0.00018645,2]
[364027847,1748967046787,-440.0,0.00018645,2]
[364027850,1748967046798,-440.0,0.00018645,2]
[364027852,1748967046808,-571.35018929,0.00018645,2]
[364027854,1748967046818,-293.66393533,0.00018645,2]
[364027856,1748967046828,-440.0,0.00018645,2]
[364027858,1748967046838,-400.0,0.00018645,2]
[364027860,1748967046849,-440.0,0.00018645,2]
[364027862,1748967046858,-440.0,0.00018645,2]
[364027864,1748967046868,-440.0,0.00018645,2]
[364027866,1748967046878,-440.0,0.00018645,2]
[364027868,1748967046888,-460.7901076,0.00018645,2]
[364027870,1748967046899,-440.0,0.00018645,2]
[364027872,1748967046909,-400.0,0.00018645,2]
[364027875,1748967046920,-440.0,0.00018645,2]
[364027877,1748967046930,-440.0,0.00018645,2]
[364027879,1748967046941,-400.0,0.00018645,2]
[364027881,1748967046951,-420.0,0.00018645,2]
[364027883,1748967046960,-400.0,0.00018645,2]
[364027885,1748967046969,-151.38741221,0.00018772,2]
[364027887,1748967046979,-440.0,0.00018842,2]
[364027889,1748967046988,-440.0,0.00018842,2]
[364027891,1748967046998,-546.44,0.00018842,2]
[364027893,1748967047007,-440.0,0.00018842,2]
[364027895,1748967047017,-200.0,0.00018847,10]
[364027897,1748967047027,-200.0,0.00018847,10]
[364027899,1748967047036,-200.0,0.00018847,10]
[364027901,1748967047046,-200.0,0.00018847,10]
[364027903,1748967047055,-200.0,0.00018847,10]
[364027905,1748967047065,-200.0,0.00018847,10]
[364027907,1748967047075,-200.0,0.00018847,10]
[364027909,1748967047085,-200.0,0.00018847,10]
[364027911,1748967047098,-200.0,0.00018847,10]
[364027913,1748967047108,-200.0,0.00018847,10]
[364027916,1748967047118,-200.0,0.00018847,10]
[364027918,1748967047129,-200.0,0.00018847,10]
[364027920,1748967047139,-200.0,0.00018847,10]
[364027922,1748967047149,-200.0,0.00018847,10]
[364027924,1748967047158,-200.0,0.00018847,10]
[364027926,1748967047169,-200.0,0.00018847,10]
[364027928,1748967047178,-200.0,0.00018847,10]
[364027930,1748967047190,-200.0,0.00018847,10]
[364027932,1748967047200,-200.0,0.00018847,10]
[364027934,1748967047211,-200.0,0.00018847,10]
[364027936,1748967047221,-200.0,0.00018847,10]
[364027938,1748967047231,-200.0,0.00018847,10]
[364027940,1748967047241,-200.0,0.00018847,10]
[364027942,1748967047253,-200.0,0.00018847,10]
[364027945,1748967047263,-200.0,0.00018847,10]
[364027947,1748967047273,-200.0,0.00018847,10]
[364027949,1748967047283,-200.0,0.00018847,10]
[364027951,1748967047293,-200.0,0.00018847,10]
[364027953,1748967047303,-200.0,0.00018847,10]
[364027955,1748967047313,-200.0,0.00018847,10]
[364027957,1748967047322,-200.0,0.00018847,10]
[364027959,1748967047332,-200.0,0.00018847,10]
[364027961,1748967047342,-200.0,0.00018847,10]
[364027963,1748967047354,-200.0,0.00018847,10]
[364027965,1748967047363,-200.0,0.00018847,10]
[364027967,1748967047373,-200.0,0.00018847,10]
[364027969,1748967047383,-200.0,0.00018847,10]
[364027971,1748967047394,-200.0,0.00018847,10]
[364027973,1748967047404,-200.0,0.00018847,10]
[364027975,1748967047414,-200.0,0.00018847,10]
[364027977,1748967047424,-200.0,0.00018847,10]
[364027979,1748967047434,-200.0,0.00018847,10]
[364027981,1748967047444,-200.0,0.00018847,10]
[364027983,1748967047454,-200.0,0.00018847,10]
[364027985,1748967047464,-200.0,0.00018847,10]
[364027987,1748967047473,-200.0,0.00018847,10]
[364027990,1748967047484,-200.0,0.00018847,10]
[364027992,1748967047494,-200.0,0.00018847,10]
[364027994,1748967047504,-200.0,0.00018847,10]
[364027996,1748967047514,-200.0,0.00018847,10]
[364027998,1748967047524,-200.0,0.00018847,10]
[364028000,1748967047534,-200.0,0.00018847,10]
[364028001,1748967047543,-200.0,0.00018847,10]
[364028003,1748967047553,-200.0,0.00018847,10]
[364028006,1748967047562,-200.0,0.00018847,10]
[364028008,1748967047572,-200.0,0.00018847,10]
[364028009,1748967047581,-200.0,0.00018847,10]
[364028012,1748967047591,-200.0,0.00018847,10]
[364028014,1748967047601,-200.0,0.00018847,10]
[364028016,1748967047610,-200.0,0.00018847,10]
[364028018,1748967047620,-200.0,0.00018847,10]
[364028020,1748967047630,-200.0,0.00018847,10]
[364028022,1748967047640,-200.0,0.00018847,10]
[364028024,1748967047651,-200.0,0.00018847,10]
[364028026,1748967047661,-200.0,0.00018847,10]
[364028028,1748967047670,-200.0,0.00018847,10]
[364028030,1748967047680,-200.0,0.00018847,10]
[364028032,1748967047689,-200.0,0.00018847,10]
[364028034,1748967047699,-200.0,0.00018847,10]
[364028036,1748967047709,-200.0,0.00018847,10]
[364028038,1748967047718,-200.0,0.00018847,10]
[364028040,1748967047727,-200.0,0.00018847,10]
[364028042,1748967047737,-200.0,0.00018847,10]
[364028044,1748967047747,-288.959645,0.00018847,10]
[364028046,1748967047756,-440.0,0.00018848,2]
[364028048,1748967047766,-430.0,0.00018848,2]
[364028050,1748967047775,-440.0,0.00018848,2]
[364028052,1748967047785,-430.0,0.00018848,2]
[364028054,1748967047795,-440.0,0.00018848,2]
[364028056,1748967047804,-430.0,0.00018848,2]
[364028058,1748967047814,-210.96226806,0.00018848,2]
[364028060,1748967047823,-495.1144221,0.00018848,2]
[364028062,1748967047833,-266.02928671,0.00018848,2]
[364028064,1748967047842,-440.0,0.00018848,2]
[364028066,1748967047852,-430.0,0.00018848,2]
[364028068,1748967047862,-430.0,0.00018848,2]
[364028070,1748967047871,-400.0,0.00018848,2]
[364028072,1748967047881,-338.44074391,0.00018848,2]
[364028075,1748967047890,-430.0,0.00018848,2]
[364028077,1748967047901,-275.00357188,0.00018848,2]
[364028078,1748967047910,-440.0,0.00018848,2]
[364028081,1748967047920,-437.76,0.00018848,2]
[364028083,1748967047929,-430.0,0.00018848,2]
[364028085,1748967047939,-440.0,0.00018848,2]
[364028098,1748967048062,-430.0,0.00018848,2]
[364028100,1748967048073,-430.0,0.00018848,2]
[364028102,1748967048083,-440.0,0.00018848,2]
[364028104,1748967048098,-627.05,0.00018848,2]
[364028107,1748967048107,-430.0,0.00018848,2]
[364028109,1748967048117,-440.0,0.00018848,2]
[364028111,1748967048128,-430.0,0.00018848,2]
[364028113,1748967048138,-430.0,0.00018848,2]
[364028115,1748967048149,-415.83528251,0.00018848,2]
[364028117,1748967048158,-440.0,0.00018848,2]
[364028119,1748967048169,-443.70170323,0.00018848,2]
[364028121,1748967048179,-302.06786946,0.00018848,2]
[364028123,1748967048189,-224.86938334,0.00018848,2]
[364028125,1748967048199,-440.0,0.00018848,2]
[364028127,1748967048209,-440.0,0.00018848,2]
[364028129,1748967048218,-430.0,0.00018848,2]
[364028131,1748967048228,-430.0,0.00018848,2]
[364028133,1748967048237,-400.0,0.00018848,2]
[364028135,1748967048247,-440.0,0.00018848,2]
[364028137,1748967048258,-440.0,0.00018848,2]
[364028139,1748967048268,-430.0,0.00018848,2]
[364028141,1748967048277,-430.0,0.00018848,2]
[364028143,1748967048287,-430.0,0.00018848,2]
[364028145,1748967048296,-440.0,0.00018848,2]
[364028146,1748967048306,-440.0,0.00018848,2]
[364028149,1748967048316,-440.0,0.00018848,2]
[364028150,1748967048325,-440.0,0.00018848,2]
[364028153,1748967048337,-381.9306243,0.000189,2]
[364028155,1748967048349,-160.0,0.00018906,2]
[364028157,1748967048359,-12670.76136593,0.00018906,2]
[364028159,1748967048368,-440.0,0.00018917,2]
[364028161,1748967048381,-440.0,0.00018917,2]
[364028163,1748967048392,-263.21211109,0.00018918,2]
[364028165,1748967048402,-161.06,0.00018918,2]
[364028167,1748967048412,-440.0,0.00018918,2]
[364028169,1748967048422,-262.25263471,0.00018918,2]
[364028171,1748967048432,-440.0,0.00018918,2]
[364028173,1748967048442,-410.0,0.00018919,2]
[364028175,1748967048451,-542.57,0.00018919,2]
[364028177,1748967048461,-440.0,0.00018919,2]
[364028179,1748967048471,-440.0,0.00018919,2]
[364028181,1748967048480,-440.0,0.00018919,2]
[364028183,1748967048489,-384.3352832,0.00018919,2]
[364028185,1748967048499,-432.95941968,0.00018919,2]
[364028187,1748967048510,-420.0,0.00018919,2]
[364028189,1748967048520,-410.0,0.00018919,2]
[364028191,1748967048530,-291.56508279,0.00018919,2]
[364028193,1748967048539,-421.10801608,0.00018919,2]
[364028195,1748967048548,-420.0,0.00018919,2]
[364028197,1748967048558,-420.0,0.00018919,2]
[364028199,1748967048568,-420.0,0.00018919,2]
[364028201,1748967048578,-420.0,0.00018919,2]
[364028203,1748967048587,-236.71549812,0.00018919,2]
[364028205,1748967048597,-440.0,0.00018919,2]
[364028207,1748967048607,-390.0,0.00018919,2]
[364028209,1748967048617,-374.46,0.00018919,2]
[364028211,1748967048626,-440.0,0.00018919,2]
[364028213,1748967048636,-440.0,0.00018919,2]
[364028215,1748967048646,-440.0,0.00018919,2]
[364028217,1748967048655,-410.0,0.00018919,2]
[364028219,1748967048665,-440.0,0.00018919,2]
[364028221,1748967048675,-410.0,0.00018919,2]
[364028223,1748967048684,-381.93062403,0.00019107,2]
[364028225,1748967048695,-440.0,0.00019116,2]
[364028227,1748967048705,-440.0,0.00019116,2]
[364028229,1748967048715,-546.44,0.00019116,2]
[364028232,1748967048724,-440.0,0.00019116,2]
[364028233,1748967048734,-440.0,0.00019122,2]
[364028235,1748967048743,-420.0,0.00019122,2]
[364028237,1748967048753,-420.0,0.00019122,2]
[364028239,1748967048763,-420.0,0.00019122,2]
[364028241,1748967048772,-529.19181481,0.00019122,2]
[364028243,1748967048782,-420.0,0.00019122,2]
[364028246,1748967048792,-406.77971911,0.00019122,2]
[364028248,1748967048802,-627.05,0.00019122,2]
[364028249,1748967048812,-420.0,0.00019122,2]
[364028252,1748967048822,-457.52396874,0.00019122,2]
[364028253,1748967048832,-440.0,0.00019122,2]
[364028255,1748967048841,-430.0,0.00019122,2]
[364028258,1748967048852,-430.0,0.00019122,2]
[364028260,1748967048861,-420.0,0.00019122,2]
[364028261,1748967048870,-430.0,0.00019122,2]
[364028263,1748967048879,-548.89,0.00019191,2]
[364028265,1748967048889,-440.0,0.00019191,2]
[364028267,1748967048900,-440.0,0.00019192,2]
[364028269,1748967048910,-440.0,0.00019192,2]
[364028271,1748967048920,-410.0,0.00019193,2]
[364028273,1748967048930,-277.85071538,0.00019193,2]
[364028275,1748967048939,-468.97257767,0.00019193,2]
[364028277,1748967048949,-421.78,0.00019193,2]
[364028279,1748967048959,-157.68,0.00019193,2]
[364028281,1748967048968,-282.82963712,0.00019193,2]
[364028283,1748967048978,-440.0,0.00019193,2]
[364028285,1748967048987,-440.0,0.00019193,2]
[364028287,1748967048996,-207.4,0.0001925,2]
[364028289,1748967049006,-381.93062403,0.00019314,2]
[364028291,1748967049017,-440.0,0.0001939,2]
[364028293,1748967049026,-440.0,0.0001939,2]
[364028295,1748967049036,-546.44,0.0001939,2]
[364028297,1748967049045,-440.0,0.0001939,2]
[364028299,1748967049055,-417.83333337,0.00019396,2]
[364028301,1748967049065,-627.05,0.00019396,2]
[364028303,1748967049074,-463.59725457,0.00019396,2]
[364028305,1748967049086,-440.0,0.00019465,2]
[364028308,1748967049098,-440.0,0.00019466,2]
[364028309,1748967049108,-310.20041852,0.00019466,2]
[364028325,1748967049259,-129.79958148,0.00019466,2]
[364028327,1748967049270,-440.0,0.00019467,2]
[364028329,1748967049280,-548.95,0.00019467,2]
[364028330,1748967049291,-381.93062403,0.00019521,2]
[364028332,1748967049301,-440.0,0.00019664,2]
[364028334,1748967049312,-440.0,0.00019664,2]
[364028336,1748967049323,-546.44,0.00019664,2]
[364028338,1748967049334,-440.0,0.00019664,2]
[364028340,1748967049343,-627.05,0.0001967,2]
[364028342,1748967049353,-381.93062403,0.00019728,2]
[364028344,1748967049362,-440.0,0.00019739,2]
[364028346,1748967049372,-440.0,0.0001974,2]
[364028348,1748967049382,-440.0,0.0001974,2]
[364028350,1748967049392,-496.76,0.00019741,2]
[364028352,1748967049406,-22320.45638198,0.00019757,2]